[Event "GER-chT Youth Countries 2020"]
[Site "Berlin"]
[Date "2020.10.03"]
[Round "6"]
[White "Weidenhoefer, Max"]
[Black "Khachatryan, Taron"]
[Result "1/2-1/2"]
[ECO "B90"]
[WhiteElo "1897"]
[BlackElo "2136"]
[Annotator "ChessBase"]
[PlyCount "129"]
[EventDate "2020.09.30"]
[EventType "team-tourn"]
[EventRounds "7"]
[EventCountry "GER"]
[SourceTitle "playchess.com"]
[Source "ChessBase"]
[SourceQuality "1"]
[TimeControl "30/5400+30:0"]

1. e4 {[%emt 0:00:00]} c5 {[%emt 0:00:00]} 2. Nf3 {[%emt 0:00:00]} d6 {[%emt 0:00:00]} 3. d4 {[%emt 0:00:00]} cxd4 {[%emt 0:00:00]} 4. Nxd4 {[%emt 0:00:00]} Nf6 {[%emt 0:00:00]} 5. Nc3 {[%emt 0:00:00]} a6 {[%emt 0:00:10]} 6. Be3 {[%emt 0:00:00]} e5 {[%emt 0:00:05]} 7. Nb3 {[%emt 0:00:00]} Be6 {[%emt 0:00:04]} 8. f3 {[%emt 0:00:10]} Be7 {[%emt 0:00:07]} 9. Qd2 {[%emt 0:00:05]} Nbd7 {[%emt 0:00:06]} 10. O-O-O {[%emt 0:03:06]} O-O {[%emt 0:00:30]} 11. g4 {[%emt 0:00:24]} b5 {[%emt 0:00:05]} 12. Kb1 {[%emt 0:02:40]} Nb6 {[%emt 0:00:31]} 13. g5 {[%emt 0:02:53]} Nh5 {[%emt 0:00:19]} 14. Nd5 {[%emt 0:05:37]} Nxd5 {[%emt 0:00:47]} 15. exd5 {[%emt 0:00:05]} Bf5 {[%emt 0:00:04]} 16. Na5 {[%emt 0:04:07]} Bd7 {[%emt 0:01:32]} 17. h4 {[%emt 0:08:59]} Ng3 {[%emt 0:01:33]} 18. Rh2 {[%emt 0:04:46]} Nxf1 {[%emt 0:00:53]} 19. Rxf1 {[%emt 0:00:01]} Qc7 {[%emt 0:00:15]} 20. f4 {[%emt 0:02:58]} f5 {[%emt 0:02:08]} 21. Rd1 {[%emt 0:05:13]} Bd8 {[%emt 0:03:03]} 22. Nb3 {[%emt 0:03:29]} Qc4 {[%emt 0:04:41]} 23. fxe5 {[%emt 0:07:56]} dxe5 {[%emt 0:00:13]} 24. Nc5 {[%emt 0:00:24]} Be8 {[%emt 0:14:21]} 25. b3 {[%emt 0:07:55]} Qg4 {[%emt 0:00:23]} 26. d6 {[%emt 0:03:12]} Bc6 {[%emt 0:01:12]} 27. Ne6 {[%emt 0:16:57]} f4 {[%emt 0:01:06]} 28. Nxf8 {[%emt 0:04:52]} fxe3 {[%emt 0:00:14]} 29. Qd3 {[%emt 0:00:44]} Kxf8 {[%emt 0:02:28]} 30. Rf1+ {[%emt 0:01:11]} Kg8 {[%emt 0:01:02]} 31. Qxe3 {[%emt 1:30:51]} Qd4 {[%emt 1:31:35]} 32. Qxd4 {[%emt 0:05:14]} exd4 {[%emt 0:00:03]} 33. Rhf2 {[%emt 0:00:10]} Bb6 {[%emt 0:00:27]} 34. Rf7 {[%emt 0:00:25]} Re8 {[%emt 0:07:42]} 35. h5 {[%emt 0:03:56]} Bd5 {[%emt 0:24:45]} 36. g6 {[%emt 0:04:39]} Rd8 {[%emt 0:02:52]} 37. Re7 {[%emt 0:01:06]} hxg6 {[%emt 0:04:19]} 38. hxg6 {[%emt 0:00:19]} Bc5 {[%emt 0:00:36]} 39. Re5 {[%emt 0:01:52]} Bg2 {[%emt 0:00:03]} 40. Rfe1 {[%emt 0:02:55]} Bxd6 {[%emt 0:00:07]} 41. Re8+ {[%emt 0:00:00]} Rxe8 {[%emt 0:00:00]} 42. Rxe8+ {[%emt 0:00:00]} Bf8 {[%emt 0:00:00]} 43. a3 {[%emt 0:00:00]} Bc6 {[%emt 0:00:00]} 44. Re6 {[%emt 0:00:00]} Bb7 {[%emt 0:00:00]} 45. b4 {[%emt 0:00:00]} Bc8 {[%emt 0:00:00]} 46. Rc6 {[%emt 0:00:00]} Bb7 {[%emt 0:00:00]} 47. Rb6 {[%emt 0:00:00]} Bc8 {[%emt 0:00:00]} 48. Kc1 {[%emt 0:00:00]} a5 {[%emt 0:00:00]} 49. Rxb5 {[%emt 0:00:00]} axb4 {[%emt 0:00:00]} 50. axb4 {[%emt 0:00:00]} Bd7 {[%emt 0:00:00]} 51. Rb6 {[%emt 0:00:00]} Be8 {[%emt 0:00:00]} 52. Re6 {[%emt 0:02:40]} Bxg6 {[%emt 0:00:00]} 53. Rxg6 {[%emt 0:00:30]} Bxb4 {[%emt 0:00:00]} 54. Kd1 {[%emt 0:00:34]} Kf7 {[%emt 0:00:00]} 55. Ra6 {[%emt 0:00:18]} Be7 {[%emt 0:00:00]} 56. Ke2 {[%emt 0:01:19]} Bf6 {[%emt 0:00:00]} 57. Kd3 {[%emt 0:00:07]} Ke7 {[%emt 0:00:00]} 58. Ke4 {[%emt 0:00:29]} Kd7 {[%emt 0:00:00]} 59. Kf5 {[%emt 0:00:35]} Ke7 {[%emt 0:00:00]} 60. Re6+ {[%emt 0:00:09]} Kd7 {[%emt 0:00:00]} 61. Re4 {[%emt 1:31:15]} Kd6 {[%emt 1:19:38]} 62. Re1 {[%emt 0:01:10]} Kd5 {[%emt 0:00:08]} 63. Rd1 {[%emt 0:00:16]} Kc4 {[%emt 0:00:05]} 64. Rd3 {[%emt 0:00:06]} Kc5 {[%emt 0:00:06]} 65. Ke4 1/2-1/2

[Event "GER-chT Youth Countries 2020"]
[Site "Berlin"]
[Date "2020.10.03"]
[Round "6"]
[White "Zhou, Lepu Coco"]
[Black "Jacoby, Angelina"]
[Result "1-0"]
[ECO "B01"]
[WhiteElo "1872"]
[BlackElo "1630"]
[Annotator "NA"]
[PlyCount "123"]
[EventDate "2020.09.30"]
[EventType "team-tourn"]
[EventRounds "7"]
[EventCountry "GER"]
[SourceTitle "playchess.com"]
[Source "ChessBase"]
[SourceQuality "1"]
[TimeControl "30/5400+30:0"]

1. e4 {[%emt 0:00:00]} d5 {[%emt 0:00:00]} 2. exd5 {[%emt 0:00:00]} Qxd5 {[%emt 0:00:00]} 3. Nc3 {[%emt 0:00:00]} Qd8 {[%emt 0:00:00]} 4. d4 {[%emt 0:00:09]} Nf6 {[%emt 0:00:00]} 5. Nf3 {[%emt 0:00:22]} Bg4 {[%emt 0:00:00]} 6. Be3 {[%emt 0:00:44]} e6 {[%emt 0:01:25]} 7. Bc4 {[%emt 0:01:02]} c6 {[%emt 0:01:12]} 8. O-O {[%emt 0:00:44]} Bd6 {[%emt 0:01:36]} 9. Re1 {[%emt 0:01:23]} O-O {[%emt 0:00:27]} 10. h3 {[%emt 0:00:44]} Bxf3 {[%emt 0:04:06]} 11. Qxf3 {[%emt 0:00:07]} Nbd7 {[%emt 0:01:29]} 12. Rad1 {[%emt 0:06:21]} Nd5 {[%emt 0:03:39]} 13. Nxd5 {[%emt 0:01:57]} cxd5 {[%emt 0:03:51]} 14. Bd3 {[%emt 0:01:07]} Qf6 {[%emt 0:03:35]} 15. Qxf6 {[%emt 0:02:08]} Nxf6 {[%emt 0:00:11]} 16. Bd2 {[%emt 0:04:43]} Rac8 {[%emt 0:03:22]} 17. b3 {[%emt 0:01:22]} h6 {[%emt 0:05:41]} 18. c4 {[%emt 0:00:47]} b6 {[%emt 0:02:44]} 19. a4 {[%emt 0:08:49]} Rfd8 {[%emt 0:05:20]} 20. a5 {[%emt 0:01:47]} Bf8 {[%emt 0:00:37]} 21. axb6 {[%emt 0:01:07]} axb6 {[%emt 0:00:08]} 22. Bc3 {[%emt 0:00:25]} Ne8 {[%emt 0:09:48]} 23. Rc1 {[%emt 0:09:23]} g5 {[%emt 0:06:53]} 24. Red1 {[%emt 0:08:29]} Bg7 {[%emt 0:09:26]} 25. cxd5 {[%emt 0:04:00]} Rxd5 {[%emt 0:05:01]} 26. Ba6 Rcd8 {[%emt 0:04:32]} 27. Bb2 {[%emt 0:11:45]} Nf6 {[%emt 0:09:29]} 28. Rc8 {[%emt 0:05:12]} Rxc8 {[%emt 0:06:38]} 29. Bxc8 {[%emt 0:00:07]} Rd8 {[%emt 0:00:39]} 30. Bb7 {[%emt 0:01:21]} Nd5 {[%emt 0:00:28]} 31. Rc1 {[%emt 1:31:04]} Rd7 {[%emt 1:33:53]} 32. Ba6 {[%emt 0:03:08]} Rc7 {[%emt 0:03:46]} 33. Rxc7 {[%emt 0:00:59]} Nxc7 {[%emt 0:00:05]} 34. Bc4 {[%emt 0:00:16]} Ne8 {[%emt 0:01:13]} 35. Kf1 {[%emt 0:00:35]} Nd6 {[%emt 0:00:21]} 36. Bd3 {[%emt 0:00:12]} Nb7 {[%emt 0:02:15]} 37. Ke2 {[%emt 0:00:53]} Kf8 {[%emt 0:01:30]} 38. Ba3+ {[%emt 0:00:28]} Ke8 {[%emt 0:00:39]} 39. Bb5+ {[%emt 0:00:15]} Kd8 {[%emt 0:00:25]} 40. Kd3 {[%emt 0:00:13]} Kc7 {[%emt 0:01:59]} 41. Be8 {[%emt 0:01:25]} f5 {[%emt 0:00:00]} 42. Bg6 {[%emt 0:00:00]} Kc6 {[%emt 0:00:00]} 43. g4 {[%emt 0:00:00]} f4 {[%emt 0:00:00]} 44. Be4+ {[%emt 0:00:00]} Kc7 {[%emt 0:00:00]} 45. Bf3 {[%emt 0:00:00]} Nd6 {[%emt 0:00:00]} 46. Bg2 {[%emt 0:00:00]} Bf6 {[%emt 0:00:00]} 47. d5 {[%emt 0:00:00]} exd5 {[%emt 0:00:00]} 48. Bxd5 {[%emt 0:00:00]} Bg7 {[%emt 0:00:00]} 49. Bc1 {[%emt 0:00:00]} Ba1 {[%emt 0:00:00]} 50. h4 {[%emt 0:00:00]} Bf6 {[%emt 0:00:00]} 51. hxg5 {[%emt 0:00:00]} hxg5 {[%emt 0:00:00]} 52. f3 {[%emt 0:00:00]} Bg7 {[%emt 0:00:00]} 53. Bd2 {[%emt 0:00:00]} Kd7 {[%emt 0:00:00]} 54. Be1 {[%emt 0:00:00]} Bf6 {[%emt 0:00:00]} 55. Bf2 {[%emt 0:00:00]} Kc7 {[%emt 0:00:00]} 56. Bd4 {[%emt 0:00:00]} Be7 {[%emt 0:00:16]} 57. Be5 {[%emt 0:00:00]} Kd7 {[%emt 0:00:41]} 58. Bh8 {[%emt 0:00:00]} Bd8 {[%emt 0:01:46]} 59. Kd4 {[%emt 0:00:00]} Ke7 {[%emt 0:00:55]} 60. b4 {[%emt 0:00:00]} Kf8 {[%emt 0:01:28]} 61. Kd3 {[%emt 1:21:51]} Ke7 {[%emt 1:31:16]} 62. Bg7 {[%emt 0:00:46]} 1-0

[Event "GER-chT Youth Countries 2020"]
[Site "Berlin"]
[Date "2020.10.03"]
[Round "6"]
[White "Ley, Sabrina"]
[Black "Hommer, Jeremy"]
[Result "0-1"]
[ECO "B10"]
[WhiteElo "1871"]
[BlackElo "2246"]
[Annotator "ChessBase"]
[PlyCount "130"]
[EventDate "2020.09.30"]
[EventType "team-tourn"]
[EventRounds "7"]
[EventCountry "GER"]
[SourceTitle "playchess.com"]
[Source "ChessBase"]
[SourceQuality "1"]
[TimeControl "30/5400+30:0"]

1. e4 {[%emt 0:00:00]} c6 {[%emt 0:00:00]} 2. Nf3 {[%emt 0:00:12]} d5 {[%emt 0:00:00]} 3. Nc3 {[%emt 0:00:38]} dxe4 {[%emt 0:00:07]} 4. Nxe4 {[%emt 0:00:14]} Nf6 {[%emt 0:00:06]} 5. Qe2 {[%emt 0:00:40]} Nxe4 {[%emt 0:00:14]} 6. Qxe4 {[%emt 0:00:04]} Qd5 {[%emt 0:00:08]} 7. Qh4 {[%emt 0:00:34]} Qe6+ {[%emt 0:02:19]} 8. Be2 {[%emt 0:00:06]} Qg4 {[%emt 0:01:39]} 9. Qg3 {[%emt 0:00:05]} Qxg3 {[%emt 0:03:17]} 10. hxg3 {[%emt 0:00:05]} g6 {[%emt 0:03:20]} 11. Bc4 {[%emt 0:07:44]} e6 {[%emt 0:08:24]} 12. d4 {[%emt 0:04:59]} Nd7 {[%emt 0:01:25]} 13. Bf4 {[%emt 0:03:59]} Bg7 {[%emt 0:19:55]} 14. O-O-O {[%emt 0:05:03]} Nb6 {[%emt 0:16:42]} 15. Bb3 {[%emt 0:09:57]} Bd7 {[%emt 0:02:03]} 16. Bh6 {[%emt 0:15:27]} Kf8 {[%emt 0:05:58]} 17. Rh2 {[%emt 0:09:44]} Bxh6+ {[%emt 0:01:31]} 18. Rxh6 {[%emt 0:00:06]} Kg7 {[%emt 0:00:19]} 19. Rdh1 {[%emt 0:01:01]} f6 {[%emt 0:00:25]} 20. g4 {[%emt 0:03:12]} Rae8 {[%emt 0:10:43]} 21. g5 {[%emt 0:02:27]} f5 {[%emt 0:01:35]} 22. Ne5 {[%emt 0:01:31]} Bc8 {[%emt 0:00:39]} 23. c3 Nd7 {[%emt 0:02:49]} 24. Nc4 {[%emt 0:09:07]} Re7 {[%emt 0:03:25]} 25. Nd6 {[%emt 0:07:34]} Nb6 {[%emt 0:01:02]} 26. Re1 {[%emt 0:01:18]} Rd8 27. Nc4 {[%emt 0:05:11]} Nxc4 {[%emt 0:03:49]} 28. Bxc4 {[%emt 0:00:02]} a5 {[%emt 0:02:04]} 29. a3 {[%emt 0:02:01]} a4 {[%emt 0:03:17]} 30. Rh3 {[%emt 0:01:07]} Rde8 {[%emt 0:01:44]} 31. Rhe3 {[%emt 1:30:54]} h6 32. gxh6+ {[%emt 0:00:58]} Kxh6 {[%emt 1:32:22]} 33. Re5 {[%emt 0:00:53]} Kg5 {[%emt 0:01:46]} 34. Kd2 {[%emt 0:02:59]} Kf6 {[%emt 0:00:01]} 35. R1e2 {[%emt 0:00:45]} Rh7 {[%emt 0:00:24]} 36. g3 {[%emt 0:02:42]} Rh1 {[%emt 0:00:32]} 37. Re1 {[%emt 0:03:20]} Rh2 {[%emt 0:00:20]} 38. R1e2 {[%emt 0:00:57]} b6 {[%emt 0:00:20]} 39. Kd1 {[%emt 0:00:46]} g5 {[%emt 0:03:17]} 40. Kd2 {[%emt 0:00:37]} Rh1 {[%emt 0:00:44]} 41. Bd3 {[%emt 0:00:00]} Reh8 {[%emt 0:00:00]} 42. Bc4 {[%emt 0:00:00]} Rb1 {[%emt 0:00:00]} 43. Ke3 {[%emt 0:00:00]} b5 {[%emt 0:00:00]} 44. Bd3 {[%emt 0:00:00]} Rd1 {[%emt 0:00:00]} 45. Rd2 {[%emt 0:00:00]} Rg1 {[%emt 0:00:00]} 46. c4 {[%emt 0:00:00]} Rh3 {[%emt 0:00:00]} 47. Kf3 {[%emt 0:00:00]} Bd7 {[%emt 0:00:00]} 48. cxb5 {[%emt 0:00:00]} Be8 49. Bc4 {[%emt 0:00:26]} Bh5+ {[%emt 0:00:00]} 50. Ke3 {[%emt 0:00:06]} cxb5 {[%emt 0:02:02]} 51. Rxe6+ {[%emt 0:01:10]} Kf7 {[%emt 0:00:52]} 52. Rc6+ {[%emt 0:03:54]} bxc4 {[%emt 0:00:07]} 53. d5 f4+ {[%emt 0:01:08]} 54. Kd4 {[%emt 0:01:09]} fxg3 {[%emt 0:00:41]} 55. Rc7+ {[%emt 0:01:13]} Ke8 {[%emt 0:00:31]} 56. d6 {[%emt 0:00:06]} gxf2 {[%emt 0:01:09]} 57. Kc5 {[%emt 0:00:42]} Bg4 {[%emt 0:00:23]} 58. Re7+ {[%emt 0:00:23]} Kd8 {[%emt 0:01:02]} 59. Rxf2 {[%emt 0:00:03]} Rh8 {[%emt 0:00:41]} 60. Rff7 {[%emt 0:00:15]} c3 {[%emt 0:01:31]} 61. Ra7 {[%emt 1:30:22]} c2 {[%emt 1:30:28]} 62. Ra8+ {[%emt 0:00:37]} Bc8 {[%emt 0:00:01]} 63. Rxc8+ {[%emt 0:01:04]} Kxc8 {[%emt 0:00:00]} 64. Rc7+ {[%emt 0:00:07]} Kd8 {[%emt 0:00:22]} 65. Kb6 {[%emt 0:00:19]} c1=Q {[%emt 0:00:09]} 0-1

[Event "GER-chT Youth Countries 2020"]
[Site "Berlin"]
[Date "2020.10.03"]
[Round "6"]
[White "Sommer, Justus"]
[Black "Koenig, Emmilie"]
[Result "1/2-1/2"]
[ECO "B13"]
[WhiteElo "1845"]
[BlackElo "1518"]
[Annotator "NA"]
[PlyCount "108"]
[EventDate "2020.09.30"]
[EventType "team-tourn"]
[EventRounds "7"]
[EventCountry "GER"]
[SourceTitle "playchess.com"]
[Source "ChessBase"]
[SourceQuality "1"]
[TimeControl "30/5400+30:0"]

1. e4 {[%emt 0:00:00]} c6 {[%emt 0:00:00]} 2. d4 {[%emt 0:00:00]} d5 {[%emt 0:00:00]} 3. exd5 {[%emt 0:00:00]} cxd5 {[%emt 0:00:00]} 4. Bd3 {[%emt 0:00:01]} Nf6 {[%emt 0:00:00]} 5. Bf4 {[%emt 0:00:19]} Bg4 {[%emt 0:00:43]} 6. f3 {[%emt 0:00:36]} Bd7 {[%emt 0:01:22]} 7. Ne2 {[%emt 0:00:44]} e6 {[%emt 0:01:17]} 8. O-O {[%emt 0:00:53]} Nc6 {[%emt 0:01:30]} 9. c3 {[%emt 0:00:54]} Be7 {[%emt 0:05:12]} 10. Nd2 {[%emt 0:01:31]} Qb6 {[%emt 0:06:33]} 11. Qb3 {[%emt 0:01:54]} Qxb3 {[%emt 0:02:01]} 12. axb3 {[%emt 0:00:28]} O-O {[%emt 0:02:28]} 13. Ng3 {[%emt 0:01:28]} Ne8 {[%emt 0:05:11]} 14. b4 {[%emt 0:02:49]} Bd6 {[%emt 0:03:36]} 15. Bxd6 {[%emt 0:01:31]} Nxd6 {[%emt 0:00:10]} 16. f4 {[%emt 0:00:25]} Ne7 {[%emt 0:02:51]} 17. Nf3 {[%emt 0:02:47]} Bb5 {[%emt 0:03:19]} 18. Bxb5 {[%emt 0:01:13]} Nxb5 {[%emt 0:00:05]} 19. Ne5 {[%emt 0:00:30]} Rfd8 {[%emt 0:03:21]} 20. Rae1 {[%emt 0:06:42]} Nd6 {[%emt 0:07:18]} 21. h3 {[%emt 0:02:50]} g6 {[%emt 0:05:12]} 22. Nh1 {[%emt 0:02:17]} a5 {[%emt 0:02:52]} 23. bxa5 {[%emt 0:03:49]} Rxa5 {[%emt 0:02:16]} 24. g4 {[%emt 0:01:00]} Ra2 {[%emt 0:13:01]} 25. Rf2 {[%emt 0:00:34]} Nc6 {[%emt 0:04:23]} 26. Rc2 {[%emt 0:03:15]} Nxe5 {[%emt 0:04:42]} 27. fxe5 {[%emt 0:00:10]} Nc4 {[%emt 0:00:26]} 28. Ree2 {[%emt 0:00:30]} Ra1+ {[%emt 0:03:13]} 29. Kg2 {[%emt 0:00:53]} Rda8 {[%emt 0:02:04]} 30. Nf2 {[%emt 0:02:03]} Rb1 {[%emt 0:02:25]} 31. Nd3 {[%emt 1:30:58]} Ra2 {[%emt 1:30:54]} 32. h4 {[%emt 0:03:11]} b6 {[%emt 0:03:04]} 33. Kh3 {[%emt 0:03:53]} Raa1 {[%emt 0:01:24]} 34. h5 {[%emt 0:02:41]} Rh1+ {[%emt 0:01:52]} 35. Rh2 {[%emt 0:00:25]} Rxh2+ {[%emt 0:02:37]} 36. Rxh2 {[%emt 0:00:10]} Rd1 {[%emt 0:00:56]} 37. Nb4 {[%emt 0:02:22]} Rb1 {[%emt 0:02:14]} 38. Nd3 {[%emt 0:01:07]} Kg7 {[%emt 0:01:59]} 39. Kh4 {[%emt 0:02:05]} Rg1 {[%emt 0:04:12]} 40. hxg6 {[%emt 0:02:02]} hxg6 {[%emt 0:00:41]} 41. Rh3 {[%emt 0:10:07]} Rg2 {[%emt 0:00:00]} 42. b4 {[%emt 0:00:00]} Nd2 {[%emt 0:00:00]} 43. Nf4 {[%emt 0:00:00]} Rf2 {[%emt 0:00:00]} 44. Nd3 {[%emt 0:00:00]} Rf3 {[%emt 0:00:00]} 45. Rxf3 {[%emt 0:00:00]} Nxf3+ {[%emt 0:00:00]} 46. Kg3 {[%emt 0:00:00]} Nd2 {[%emt 0:00:00]} 47. Nf2 {[%emt 0:00:00]} g5 {[%emt 0:00:00]} 48. Nd1 {[%emt 0:00:00]} f6 {[%emt 0:00:00]} 49. exf6+ {[%emt 0:00:00]} Kxf6 {[%emt 0:00:00]} 50. Kf2 {[%emt 0:00:00]} Ne4+ {[%emt 0:00:00]} 51. Ke3 {[%emt 0:00:00]} b5 {[%emt 0:00:00]} 52. Kd3 {[%emt 0:00:00]} e5 {[%emt 0:00:00]} 53. Ke3 {[%emt 0:00:00]} Ke6 {[%emt 0:00:00]} 54. Kd3 {[%emt 0:00:00]} Kd6 {[%emt 0:03:04]} 1/2-1/2

[Event "GER-chT Youth Countries 2020"]
[Site "Berlin"]
[Date "2020.10.03"]
[Round "6"]
[White "Fock, Amina"]
[Black "Zackrisson, Peter"]
[Result "0-1"]
[ECO "B23"]
[WhiteElo "1840"]
[BlackElo "1947"]
[Annotator "ChessBase"]
[PlyCount "86"]
[EventDate "2020.09.30"]
[EventType "team-tourn"]
[EventRounds "7"]
[EventCountry "GER"]
[SourceTitle "playchess.com"]
[Source "ChessBase"]
[SourceQuality "1"]
[TimeControl "30/5400+30:0"]

1. e4 {[%emt 0:00:00]} c5 {[%emt 0:00:00]} 2. Nc3 {[%emt 0:00:00]} Nc6 {[%emt 0:00:02]} 3. f4 {[%emt 0:01:40]} e6 {[%emt 0:00:15]} 4. Nf3 {[%emt 0:01:48]} d5 {[%emt 0:01:06]} 5. e5 {[%emt 0:02:35]} b6 {[%emt 0:01:11]} 6. Bb5 Nge7 {[%emt 0:01:34]} 7. d4 {[%emt 0:04:56]} a6 {[%emt 0:00:35]} 8. Bxc6+ {[%emt 0:02:44]} Nxc6 {[%emt 0:00:18]} 9. Be3 {[%emt 0:02:22]} Be7 {[%emt 0:01:29]} 10. O-O {[%emt 0:01:19]} O-O {[%emt 0:01:23]} 11. a4 {[%emt 0:03:27]} f6 {[%emt 0:01:54]} 12. Ne2 {[%emt 0:04:27]} fxe5 {[%emt 0:16:06]} 13. fxe5 {[%emt 0:03:51]} Bd7 {[%emt 0:01:49]} 14. Qd2 {[%emt 0:05:15]} Rc8 {[%emt 0:04:30]} 15. Nf4 {[%emt 0:05:42]} cxd4 {[%emt 0:26:40]} 16. Bxd4 {[%emt 0:07:52]} Bc5 {[%emt 0:00:25]} 17. c3 {[%emt 0:01:07]} Na5 {[%emt 0:00:18]} 18. Rab1 {[%emt 0:07:12]} Nb3 {[%emt 0:04:49]} 19. Qe3 {[%emt 0:00:34]} Qe8 {[%emt 0:00:09]} 20. a5 {[%emt 0:05:34]} bxa5 {[%emt 0:01:37]} 21. Bxc5 {[%emt 0:02:14]} Nxc5 {[%emt 0:01:11]} 22. Nd2 {[%emt 0:03:17]} Bb5 {[%emt 0:01:29]} 23. Rf3 {[%emt 0:02:32]} a4 {[%emt 0:02:05]} 24. h4 {[%emt 0:04:19]} Qe7 {[%emt 0:01:21]} 25. Rh3 {[%emt 0:02:10]} Rf5 {[%emt 0:02:55]} 26. g4 {[%emt 0:04:05]} Rf7 {[%emt 0:02:53]} 27. Ne2 {[%emt 0:04:59]} Rcf8 {[%emt 0:04:37]} 28. Rf1 {[%emt 0:01:08]} Rxf1+ {[%emt 0:02:10]} 29. Nxf1 {[%emt 0:00:04]} Ne4 {[%emt 0:01:25]} 30. Rf3 {[%emt 0:05:52]} Rxf3 {[%emt 0:00:52]} 31. Qxf3 {[%emt 1:30:04]} Qxh4 {[%emt 1:30:39]} 32. Neg3 {[%emt 0:01:19]} Bxf1 {[%emt 0:01:15]} 33. Nxf1 {[%emt 0:00:05]} Qg5 {[%emt 0:00:40]} 34. Qe2 {[%emt 0:02:18]} h5 {[%emt 0:01:11]} 35. Ne3 {[%emt 0:00:42]} hxg4 {[%emt 0:03:04]} 36. Nxg4 {[%emt 0:01:42]} Qf4 {[%emt 0:00:45]} 37. Ne3 {[%emt 0:05:59]} Ng3 {[%emt 0:01:38]} 38. Qd3 {[%emt 0:00:36]} Qxe5 {[%emt 0:01:04]} 39. Kf2 {[%emt 0:02:05]} Ne4+ {[%emt 0:01:43]} 40. Ke2 {[%emt 0:01:15]} Qh2+ {[%emt 0:00:15]} 41. Ke1 {[%emt 0:00:27]} Qxb2 {[%emt 0:00:18]} 42. Nxd5 {[%emt 0:00:00]} Qf2+ {[%emt 0:00:00]} 43. Kd1 {[%emt 0:00:00]} Qg1+ {[%emt 0:00:00]} 0-1

[Event "GER-chT Youth Countries 2020"]
[Site "Berlin"]
[Date "2020.10.03"]
[Round "6"]
[White "Besou, Hussain"]
[Black "Werner, Florin"]
[Result "1/2-1/2"]
[ECO "A01"]
[WhiteElo "1825"]
[BlackElo "1481"]
[Annotator "NA"]
[PlyCount "40"]
[EventDate "2020.09.30"]
[EventType "team-tourn"]
[EventRounds "7"]
[EventCountry "GER"]
[SourceTitle "playchess.com"]
[Source "ChessBase"]
[SourceQuality "1"]
[TimeControl "30/5400+30:0"]

1. b3 {[%emt 0:00:00]} d5 {[%emt 0:00:00]} 2. Bb2 {[%emt 0:00:30]} Bf5 {[%emt 0:01:14]} 3. Nf3 {[%emt 0:00:00]} e6 {[%emt 0:00:08]} 4. g3 {[%emt 0:00:39]} Nf6 {[%emt 0:00:15]} 5. Bg2 {[%emt 0:00:22]} c5 {[%emt 0:00:24]} 6. O-O {[%emt 0:00:44]} Nc6 {[%emt 0:00:18]} 7. d3 {[%emt 0:00:27]} Bg6 {[%emt 0:02:36]} 8. Nbd2 {[%emt 0:00:39]} Be7 {[%emt 0:00:43]} 9. c4 {[%emt 0:01:36]} d4 {[%emt 0:07:16]} 10. a3 {[%emt 0:07:28]} O-O {[%emt 0:00:46]} 11. h3 {[%emt 0:01:04]} Qc7 {[%emt 0:07:10]} 12. Rb1 {[%emt 0:13:46]} Rad8 13. Ba1 {[%emt 0:01:04]} h6 {[%emt 0:04:00]} 14. Ne1 {[%emt 0:02:42]} a5 {[%emt 0:01:17]} 15. Nc2 {[%emt 0:01:12]} b6 {[%emt 0:00:54]} 16. Qe1 {[%emt 0:06:17]} e5 {[%emt 0:03:40]} 17. Rd1 {[%emt 0:05:48]} Rfe8 {[%emt 0:04:21]} 18. Bb2 {[%emt 0:02:35]} Bd6 {[%emt 0:04:15]} 19. Ne4 {[%emt 0:00:28]} Nxe4 {[%emt 0:01:02]} 20. dxe4 {[%emt 0:00:07]} Bh7 {[%emt 0:13:46]} 1/2-1/2

[Event "GER-chT Youth Countries 2020"]
[Site "Berlin"]
[Date "2020.10.03"]
[Round "6"]
[White "Schwartz, Oliver"]
[Black "Herrmann, Jakob"]
[Result "1/2-1/2"]
[ECO "B12"]
[WhiteElo "1794"]
[BlackElo "1504"]
[Annotator "NA"]
[PlyCount "106"]
[EventDate "2020.09.30"]
[EventType "team-tourn"]
[EventRounds "7"]
[EventCountry "GER"]
[SourceTitle "playchess.com"]
[Source "ChessBase"]
[SourceQuality "1"]
[TimeControl "30/5400+30:0"]

1. e4 {[%emt 0:00:00]} c6 {[%emt 0:00:00]} 2. d4 {[%emt 0:00:00]} d5 {[%emt 0:00:00]} 3. e5 {[%emt 0:00:00]} Bf5 4. Nf3 {[%emt 0:00:00]} e6 {[%emt 0:00:05]} 5. Be2 {[%emt 0:00:08]} c5 {[%emt 0:01:24]} 6. Be3 {[%emt 0:00:08]} Nc6 {[%emt 0:03:22]} 7. dxc5 {[%emt 0:03:22]} Qc7 {[%emt 0:02:02]} 8. Nc3 {[%emt 0:01:47]} a6 {[%emt 0:04:56]} 9. O-O {[%emt 0:05:24]} Be7 {[%emt 0:05:43]} 10. a3 {[%emt 0:10:14]} Bf8 {[%emt 0:41:40]} 11. Re1 {[%emt 0:19:31]} Nge7 {[%emt 0:02:48]} 12. b4 {[%emt 0:23:55]} Nxe5 {[%emt 0:02:36]} 13. Nxe5 {[%emt 0:00:23]} Qxe5 {[%emt 0:00:07]} 14. Bd4 {[%emt 0:00:32]} Qc7 {[%emt 0:01:07]} 15. Be5 {[%emt 0:02:06]} Qd7 {[%emt 0:00:47]} 16. Bf3 {[%emt 0:10:23]} f6 {[%emt 0:05:18]} 17. Bd6 {[%emt 0:00:51]} Kf7 {[%emt 0:00:50]} 18. Bg4 {[%emt 0:02:01]} Bxg4 {[%emt 0:05:35]} 19. Qxg4 {[%emt 0:00:01]} Nf5 {[%emt 0:02:24]} 20. Bxf8 {[%emt 0:00:57]} Rhxf8 {[%emt 0:00:51]} 21. Rad1 {[%emt 0:00:28]} Rad8 {[%emt 0:03:17]} 22. Rd3 {[%emt 0:01:48]} Rfe8 {[%emt 0:01:20]} 23. Rh3 {[%emt 0:00:41]} Kg8 {[%emt 0:01:23]} 24. Qh5 {[%emt 0:01:47]} g6 {[%emt 0:00:30]} 25. Qf3 {[%emt 0:00:32]} Qf7 {[%emt 0:00:32]} 26. Qg4 {[%emt 0:01:10]} Rc8 {[%emt 0:02:10]} 27. Rf3 {[%emt 0:00:49]} Rcd8 {[%emt 0:00:21]} 28. h4 {[%emt 0:00:20]} Qg7 {[%emt 0:01:28]} 29. h5 {[%emt 0:00:42]} gxh5 {[%emt 0:00:35]} 30. Qxh5 {[%emt 0:00:09]} Qg6 {[%emt 0:00:31]} 31. Qh3 {[%emt 1:30:40]} Kf7 {[%emt 1:30:44]} 32. Rf4 {[%emt 0:01:12]} Rg8 {[%emt 0:00:39]} 33. Ne2 {[%emt 0:02:16]} Rg7 {[%emt 0:01:14]} 34. Ng3 {[%emt 0:00:45]} Rdg8 {[%emt 0:00:53]} 35. Nxf5 {[%emt 0:04:53]} Qxg2+ {[%emt 0:00:35]} 36. Qxg2 {[%emt 0:00:04]} Rxg2+ {[%emt 0:00:10]} 37. Kf1 {[%emt 0:00:48]} exf5 {[%emt 0:00:46]} 38. Re3 {[%emt 0:00:27]} Rh2 {[%emt 0:03:12]} 39. Rxf5 {[%emt 0:01:14]} Rh1+ {[%emt 0:01:32]} 40. Ke2 {[%emt 0:00:06]} Rg5 {[%emt 0:01:06]} 41. Rxg5 {[%emt 0:05:16]} fxg5 {[%emt 0:00:06]} 42. Re5 {[%emt 0:00:06]} g4 {[%emt 0:03:00]} 43. Rxd5 {[%emt 0:00:37]} Ke7 {[%emt 0:00:54]} 44. Rg5 {[%emt 0:00:00]} Kd7 {[%emt 0:00:00]} 45. Rxg4 {[%emt 0:00:00]} Ra1 {[%emt 0:00:00]} 46. Rh4 {[%emt 0:00:00]} Rxa3 {[%emt 0:00:00]} 47. Rxh7+ {[%emt 0:00:00]} Kc6 {[%emt 0:00:00]} 48. Rh6+ {[%emt 0:00:00]} Kc7 {[%emt 0:00:00]} 49. Rd6 {[%emt 0:00:00]} Rc3 {[%emt 0:00:00]} 50. Rd4 {[%emt 0:00:00]} Rxc2+ {[%emt 0:00:00]} 51. Ke3 {[%emt 0:00:00]} a5 {[%emt 0:00:00]} 52. Kd3 {[%emt 0:00:00]} Rxf2 {[%emt 0:00:00]} 53. bxa5 {[%emt 0:00:00]} Ra2 {[%emt 0:00:00]} 1/2-1/2